fUSD/lending_fUSD_20250123
["ID","MTS","AMOUNT","RATE_DAILY","PERIOD"]
[350116347,1737634243050,-500.0,0.0001671,2]
[350116348,1737634243059,-500.0,0.0001671,2]
[350116349,1737634243068,-500.0,0.0001671,2]
[350116350,1737634243077,-500.0,0.0001671,2]
[350116351,1737634243087,-500.0,0.0001671,2]
[350116353,1737634243096,-500.0,0.0001671,2]
[350116355,1737634243105,-524.10212941,0.0001671,2]
[350116357,1737634243114,-500.0,0.0001671,2]
[350116359,1737634243123,-500.0,0.0001671,2]
[350116361,1737634243132,-500.0,0.0001671,2]
[350116363,1737634243145,-500.0,0.0001671,2]
[350116365,1737634243154,-510.13466059,0.0001671,2]
[350116367,1737634243163,-597.15,0.0001671,2]
[350116368,1737634243173,-528.29,0.0001671,2]
[350116369,1737634243182,-500.0,0.0001671,2]
[350116370,1737634243191,-500.0,0.0001671,2]
[350116371,1737634243200,-500.0,0.0001671,2]
[350116372,1737634243209,-565.64,0.0001671,2]
[350116373,1737634243218,-500.0,0.0001671,2]
[350116374,1737634243227,-500.0,0.0001671,2]
[350116375,1737634243236,-500.0,0.0001671,2]
[350116376,1737634243245,-500.0,0.0001671,2]
[350116377,1737634243254,-500.0,0.0001671,2]
[350116378,1737634243263,-790.11,0.0001671,2]
[350116379,1737634243277,-654.18,0.0001671,2]
[350116380,1737634243287,-392.64,0.0001671,2]
[350116381,1737634243296,-500.0,0.0001671,2]
[350116382,1737634243305,-623.52,0.0001671,2]
[350116383,1737634243315,-500.0,0.0001671,2]
[350116384,1737634243324,-1607.51,0.0001671,2]
[350116385,1737634243334,-500.0,0.0001671,2]
[350116386,1737634243343,-688.0,0.0001671,2]
[350116387,1737634243352,-559.61,0.0001671,2]
[350116388,1737634243361,-1783.77,0.0001671,2]
[350116389,1737634243370,-1390.47,0.0001671,2]
[350116390,1737634243379,-500.0,0.0001671,2]
[350116391,1737634243391,-500.0,0.0001671,2]
[350116392,1737634243400,-500.0,0.0001671,2]
[350116393,1737634243409,-508.10586194,0.0001671,2]
[350116394,1737634243419,-500.0,0.0001671,2]
[350116395,1737634243428,-500.0,0.0001671,2]
[350116396,1737634243438,-500.0,0.0001671,2]
[350116397,1737634243447,-500.0,0.0001671,2]
[350116398,1737634243457,-942.26,0.0001671,2]
[350116399,1737634243466,-500.0,0.0001671,2]
[350116400,1737634243475,-321.46,0.0001671,2]
[350116401,1737634243484,-517.83537555,0.0001671,2]
[350116402,1737634243494,-500.0,0.0001671,2]
[350116403,1737634243504,-500.0,0.0001671,2]
[350116404,1737634243513,-500.0,0.0001671,2]
[350116405,1737634243522,-500.0,0.0001671,2]
[350116406,1737634243531,-1996.62,0.0001671,2]
[350116407,1737634243540,-500.0,0.0001671,2]
[350116408,1737634243550,-500.0,0.0001671,2]
[350116409,1737634243558,-2190.14,0.0001671,2]
[350116410,1737634243568,-823.32,0.0001671,2]
[350116411,1737634243577,-500.0,0.0001671,2]
[350116412,1737634243586,-500.0,0.0001671,2]
[350116413,1737634243595,-385.59939863,0.0001671,2]
[350116418,1737634246119,-758.77060137,0.0001671,2]
[350116419,1737634246129,-8.20240663,0.0001671,2]
[350116426,1737634663151,157.03,0.00016658,30]
[350116429,1737635212133,-3787.48956697,0.00012,2]
[350116451,1737635431895,-2744.782605,9.95e-05,2]
[350116453,1737635431905,-150.0,9.999e-05,2]
[350116455,1737635431915,-28313.4984557,0.0001,2]
[350116458,1737635431927,-23353.2831434,0.0001,2]
[350116460,1737635431955,-2539.0,0.0001,2]
[350116463,1737635431965,-338.76805,0.0001,2]
[350116468,1737635432013,-131108.39064427,0.0001,2]
[350116470,1737635432024,-9936.95223718,0.0001,2]
[350116472,1737635432034,-3156.59999991,0.0001,2]
[350116477,1737635432074,-1882.00620346,0.0001,2]
[350116479,1737635432085,-4807.04389375,0.0001,2]
[350116481,1737635432096,-483.86579188,0.0001,2]
[350116499,1737635432245,-305.899998,0.0001,2]
[350116501,1737635432256,-24457.5,0.0001,2]
[350116579,1737635437822,-5696.53,0.0001,2]
[350116580,1737635438062,-9043.6784214,0.0001,2]
[350116581,1737635438077,-6856.81977973,0.0001,2]
[350116582,1737635438090,-6368.11,0.0001,2]
[350116583,1737635438102,-3070.18412211,0.0001,2]
[350116584,1737635438355,-799.57829876,0.0001,2]
[350116585,1737635438366,-6316.21499151,0.0001,2]
[350116587,1737635438377,-854.58368243,0.0001,2]
[350116594,1737635439886,-391.02789701,0.0001,2]
[350116595,1737635439897,-669.23,0.0001,2]
[350116596,1737635439941,-540.5656742,0.0001,2]
[350116597,1737635439997,-3977.55150775,0.0001,2]
[350116598,1737635440054,-1541.24999996,0.0001,2]
[350116599,1737635440297,-681.82223212,0.0001,2]
[350116600,1737635440309,-626.48,0.0001,2]
[350116601,1737635440321,-30778.00000028,0.0001,2]
[350116602,1737635440332,-608.48475513,0.0001,2]
[350116624,1737635442934,-420.83217408,0.0001,2]
[350116625,1737635442947,-916.86,0.0001,2]
[350116626,1737635442963,-4683.07149268,0.0001,2]
[350116627,1737635442975,-306.130002,0.0001,2]
[350116628,1737635443127,-19985.85823401,0.0001,2]
[350116629,1737635443138,-698.384581,0.0001,2]
[350116630,1737635443150,-1580.32733307,0.0001,2]
[350116631,1737635443163,-341.61937533,0.0001,2]
[350116914,1737635445885,-31737.15782654,0.0001,2]
[350116917,1737635445900,-510.298799,0.0001,2]
[350116922,1737635445944,-5041.90529986,0.0001,2]
[350116924,1737635445953,-27849.24882315,0.0001,2]
[350116926,1737635445968,-3569.25789604,0.0001,2]
[350116928,1737635445980,-255.0,0.00010999,2]
[350116930,1737635445990,-9814.76648766,0.00011427,2]
[350116932,1737635446002,-170.95687536,0.00011427,2]
[350116934,1737635446013,-1067.0,0.00011527,2]
[350116936,1737635446023,-1152.06233807,0.00011929,2]
[350116938,1737635446034,-500.0,0.00011973,2]
[350116940,1737635446043,-296299.98587982,0.00012,2]
[350116942,1737635446054,-4717.6959659,0.00012,2]
[350116947,1737635446089,-2033.57867502,0.00012,2]
[350116956,1737635446170,-3555.7255,0.00012,2]
[350116958,1737635446181,-20808.43767781,0.00012,2]
[350116960,1737635446192,-570.88041724,0.00012,2]
[350117011,1737635452057,1772.7073,7e-05,2]
[350117012,1737635480705,5457.85,0.00022,120]
[350117014,1737635688075,157.27,0.00016658,30]
[350117017,1737635964762,1083.97149549,0.00020487,120]
[350117019,1737636495008,381.92713511,0.00022,120]
[350117020,1737636549144,-1454.39,8.809e-05,2]
[350117021,1737636549166,-369.51,0.00010137,2]
[350117022,1737636549189,-404.3759634,0.00010678,2]
[350117023,1737636549211,-391.81953041,0.00010778,2]
[350117024,1737636566459,174.13,0.00016658,30]
[350117025,1737636603751,2548.24475001,0.00022005,120]
[350117026,1737636605972,637.3619583,0.00022005,120]
[350117050,1737636632133,-220.280536,0.00010669,2]
[350117051,1737636632144,-1500.0,0.00010683,2]
[350117052,1737636632153,-300.0,0.00010722,2]
[350117053,1737636632163,-40.3394601,0.00010723,2]
[350117054,1737636632193,-11987.6,0.00010723,2]
[350117055,1737636632250,-989.3985473,0.00010723,2]
[350117056,1737636632261,-3209.95354912,0.00010723,2]
[350117057,1737636632272,-1153.87,0.00010723,2]
[350117058,1737636632361,-1148.94,0.00010723,2]
[350117059,1737636632373,-3195.6794798,0.00010723,2]
[350117060,1737636632421,-1901.58872135,0.00010723,2]
[350117061,1737636632434,-272.63024233,0.00010723,2]
[350117062,1737636632446,-3049.96134767,0.00010803,2]
[350117063,1737636632458,-500.04139326,0.00010803,2]
[350117064,1737636632469,-356.15532581,0.00010803,2]
[350117065,1737636632481,-885.46193326,0.00010803,2]
[350117066,1737636632490,-665.54009991,0.00010832,2]
[350117067,1737636632499,-916.08,0.00010832,2]
[350117068,1737636632509,-162.73,0.00010916,2]
[350117069,1737636632519,-1070.28,0.00010942,2]
[350117070,1737636632528,-250.0,0.00010998,2]
[350117071,1737636632538,-734.28,0.00010998,2]
[350117072,1737636632547,-174.12,0.00011054,2]
[350117073,1737636632557,-24866.0,0.00011073,2]
[350117074,1737636632567,-1454.39,0.00011073,2]
[350117075,1737636632576,-1000.0,0.00011125,2]
[350117076,1737636632586,-907.61,0.00011154,2]
[350117077,1737636632595,-195.91,0.00011232,2]
[350117079,1737636632605,-250.0,0.00011232,2]
[350117081,1737636632614,-168.34,0.00011232,2]
[350117083,1737636632623,-404.37596338,0.00011239,2]
[350117085,1737636632632,-2751.0,0.00011507,2]
[350117087,1737636632641,-430.64066539,0.00011606,2]
[350117089,1737636632651,-385.0,0.00011699,2]
[350117091,1737636632660,-420.0,0.00011786,2]
[350117092,1737636632669,-404.37596338,0.000118,2]
[350117094,1737636632678,-960.0519484,0.00011801,2]
[350117096,1737636632687,-161.94,0.00011859,2]
[350117098,1737636632696,-161.94,0.00011868,2]
[350117100,1737636632705,-161.94,0.00011876,2]
[350117102,1737636632714,-2403.41841,0.0001188,2]
[350117104,1737636632725,-161.94,0.00011885,2]
[350117106,1737636632735,-150.0,0.00011893,2]
[350117108,1737636632744,-161.94,0.00011893,2]
[350117110,1737636632754,-8245.25124434,0.000119,2]
[350117112,1737636632763,-8833.28983893,0.000119,2]
[350117114,1737636632772,-169.12943616,0.000119,2]
[350117116,1737636632781,-161.94,0.00011901,2]
[350117118,1737636632791,-161.94,0.0001191,2]
[350117120,1737636632799,-161.94,0.00011918,2]
[350117122,1737636632810,-250.0,0.00011931,2]
[350117124,1737636632819,-200.0,0.00011937,2]
[350117126,1737636632828,-65348.08118227,0.00012,2]
[350117128,1737636632840,-323467.86406568,0.00012,2]
[350117131,1737636632851,-159807.36948466,0.00012,2]
[350117132,1737636632860,-10325.07,0.00012055,2]
[350117134,1737636632870,-410.26,0.00012171,2]
[350117136,1737636632879,-235.7,0.00012248,2]
[350117138,1737636632888,-649.69,0.00012269,2]
[350117140,1737636632898,-250.0,0.00012321,2]
[350117142,1737636632907,-190.75,0.00012329,2]
[350117144,1737636632916,-8245.25124427,0.00012393,2]
[350117146,1737636632924,-8833.28983887,0.00012393,2]
[350117148,1737636632935,-1000.0,0.00012516,2]
[350117150,1737636632944,-177.77,0.00012537,2]
[350117152,1737636632953,-195.91,0.00012636,2]
[350117154,1737636632963,-8245.25124427,0.00012886,2]
[350117156,1737636632972,-8833.28983887,0.00012886,2]
[350117158,1737636632981,-587.0,0.00012955,2]
[350117160,1737636632990,-960.05194838,0.00013281,2]
[350117162,1737636633000,-1454.39,0.00013337,2]
[350117164,1737636633009,-8245.25124427,0.00013379,2]
[350117166,1737636633018,-8833.28983887,0.00013379,2]
[350117168,1737636633027,-448.0,0.00013534,2]
[350117170,1737636633037,-500.0,0.00013534,2]
[350117172,1737636633046,-1843.69,0.00013699,2]
[350117174,1737636633057,-500.0,0.00013699,2]
[350117176,1737636633068,-164.74,0.00013699,2]
[350117178,1737636633077,-200.0,0.00013699,2]
[350117180,1737636633087,-1542.46,0.00013747,2]
[350117182,1737636633097,-944.25,0.00013789,2]
[350117184,1737636633106,-8245.25124427,0.00013872,2]
[350117186,1737636633115,-8833.28983887,0.00013872,2]
[350117188,1737636633124,-1000.0,0.00013906,2]
[350117190,1737636633133,-195.91,0.00014039,2]
[350117192,1737636633142,-169.15,0.00014142,2]
[350117194,1737636633151,-823.0,0.0001424,2]
[350117195,1737636633160,-8245.25124427,0.00014366,2]
[350117198,1737636633169,-8833.28983887,0.00014366,2]
[350117199,1737636633179,-880.34323509,0.0001438,2]
[350117202,1737636633192,-1523.07517491,0.0001438,2]
[350117204,1737636633202,-164.74,0.00014384,2]
[350117206,1737636633211,-142.92316431,0.00014389,2]
[350117208,1737636633222,-3112.60000001,0.00014389,2]
[350117218,1737636638094,-495.60842199,0.00014389,2]
[350117219,1737636638155,-531.38762152,0.00014389,2]
[350117220,1737636638165,-4549.11237848,0.00014389,2]
[350117221,1737636638324,-279302.28185483,0.00014389,2]
[350117235,1737636640111,-2290.9133686,0.00014389,2]
[350117236,1737636640123,-1060.22289626,0.00014389,2]
[350117253,1737636643074,-4699.83239867,0.00014389,2]
[350117262,1737636643132,-583.235008,0.00014389,2]
[350117276,1737636643301,-485.45660527,0.00014289,2]
[350117277,1737636643311,-1563.96123679,0.00014389,2]
[350117295,1737636646142,-3660.0,0.00014389,2]
[350117296,1737636646203,-321.0,0.00014389,2]
[350117297,1737636646262,-320.19,0.00014389,2]
[350117303,1737636902978,636.32970639,0.00022005,120]
[350117305,1737637447064,165.42,0.00016658,30]
[350117306,1737637567864,-1819.63762959,0.00023,120]
[350117307,1737637567891,-610.23670841,0.00023,120]
[350117308,1737637577530,9560.57532337,0.00022,120]
[350117309,1737637589594,578.05558745,0.00016438,120]
[350117310,1737637590842,150.0,0.00021797,120]
[350117311,1737637651318,150.0,0.00022554,120]
[350117312,1737637672181,1000.0,0.00021917,120]
[350117313,1737637672464,1000.0,0.00021917,120]
[350117314,1737637672742,1052.28166852,0.00021917,120]
[350117315,1737637711275,150.0,0.00021396,120]
[350117316,1737637764102,-177.5564,0.00010137,2]
[350117317,1737637803401,424.6797444,0.00023,120]
[350117326,1737637832440,-72.0536,0.00010137,2]
[350117327,1737637832450,-1313.82,0.0001199,2]
[350117328,1737637832460,-184.47,0.00012329,2]
[350117329,1737637832470,-250.0,0.00013394,2]
[350117330,1737637832480,-500.0,0.00013699,2]
[350117331,1737637832489,-300.0,0.00013783,2]
[350117332,1737637832498,-23900.0,0.00013784,2]
[350117333,1737637832508,-150.0,0.00013907,2]
[350117334,1737637832518,-250.0,0.00013908,2]
[350117335,1737637832528,-292.05,0.00013908,2]
[350117336,1737637832537,-300.0,0.00013908,2]
[350117337,1737637832547,-250.0,0.00013908,2]
[350117338,1737637832560,-250.0,0.00013908,2]
[350117339,1737637832569,-10962.97,0.00013908,2]
[350117340,1737637832579,-640.03463227,0.0001396,2]
[350117341,1737637832588,-981.74,0.00014036,2]
[350117342,1737637832598,-168.03,0.0001406,2]
[350117343,1737637832607,-430.64066539,0.00014194,2]
[350117344,1737637832617,-1313.82,0.00014254,2]
[350117345,1737637832626,-168.27944597,0.00014385,2]
[350117346,1737637832635,-1000.0,0.00014411,2]
[350117347,1737637832645,-162.38,0.00014419,2]
[350117348,1737637832654,-550.0,0.00015,2]
[350117349,1737637832663,-640.03463225,0.00015008,2]
[350117350,1737637832673,-420.0,0.00015103,2]
[350117351,1737637832683,-150.0,0.00015237,2]
[350117352,1737637832692,-162.38,0.0001538,2]
[350117353,1737637832702,-195.91,0.00015443,2]
[350117354,1737637832711,-400.0,0.000155,5]
[350117355,1737637832720,-800.0,0.000156,5]
[350117356,1737637832730,-5381.1072,0.00015638,2]
[350117357,1737637832739,-155.8674,0.00015638,2]
[350117358,1737637832749,-2005.6659,0.00015638,2]
[350117359,1737637832760,-1000.0,0.00015638,2]
[350117360,1737637832769,-220.9974,0.00015638,2]
[350117362,1737637832778,-312.056,0.00015638,2]
[350117364,1737637832788,-1302.7733,0.00015638,2]
[350117366,1737637832797,-8484.9013859,0.00015638,2]
[350117368,1737637832809,-500.0,0.00015644,2]
[350117370,1737637832819,-292.05,0.00015646,2]
[350117372,1737637832828,-1200.0,0.000157,5]
[350117374,1737637832840,-8484.90138583,0.00015716,2]
[350117376,1737637832849,-31860.0522,0.00015738,2]
[350117378,1737637832858,-36184.3016,0.00015738,2]
[350117380,1737637832868,-2202.5164,0.00015738,2]
[350117381,1737637832878,-1971.42240599,0.00015738,2]
[350117384,1737637832890,-1298.590636,0.00015738,2]
[350117387,1737637832919,-385.91986734,0.00015738,2]
[350117394,1737637838341,-1584.05052263,0.00014389,2]
[350117395,1737637838399,-18.22841737,0.00014389,2]
[350117396,1737637838409,-1602.27894,0.0001543,2]
[350117397,1737637838419,-2911.76619067,0.00015738,2]
[350117398,1737637838428,-23465.3690573,0.00015738,2]
[350117408,1737637840522,-1331.24271911,0.00015738,2]
[350117409,1737637840611,-3630.23360152,0.00015738,2]
[350117410,1737637840664,-306.9501989,0.00015738,2]
[350117411,1737637840675,-508.15,0.00015738,2]
[350117412,1737637840722,-1046.1426168,0.00015738,2]
[350117436,1737637843381,-5224.7,0.00015738,2]
[350117515,1737637846306,-1138.48758365,0.00015353,2]
[350117516,1737637846322,-1132.36175706,0.00015353,2]
[350117517,1737637846335,-177.33182429,0.00015353,2]
[350117518,1737637846344,-1196.08817571,0.00015738,2]
[350117519,1737637846356,-12168.50846417,0.00015738,2]
[350117520,1737637846366,-3790.8236148,0.00015738,2]
[350117521,1737637846478,-107514.29235169,0.00015738,2]
[350117522,1737637846489,-163.79094335,0.00015738,2]
[350117523,1737637846499,-23119.9489,0.00015738,2]
[350117524,1737637846508,-7228.2686,0.00015738,2]
[350117525,1737637846518,-8484.90138583,0.00015794,2]
[350117526,1737637846527,-1600.0,0.000158,5]
[350117527,1737637846536,-84010.70207236,0.00015838,2]
[350117528,1737637846545,-8484.90138583,0.00015871,2]
[350117529,1737637846555,-2509.8225,0.000159,2]
[350117530,1737637846568,-1000.0,0.000159,2]
[350117531,1737637846578,-2000.0,0.000159,5]
[350117532,1737637846587,-705.99757048,0.000159,2]
[350117533,1737637846596,-8484.90138583,0.00015949,2]
[350117534,1737637846605,-20070.83364179,0.00016,2]
[350117535,1737637846614,-1541.0,0.00016,3]
[350117536,1737637846623,-8484.90138583,0.00016027,2]
[350117537,1737637846632,-640.03463225,0.00016056,2]
[350117538,1737637846642,-271.2,0.00016087,2]
[350117539,1737637846651,-8484.90138583,0.00016105,2]
[350117540,1737637846660,-705.99757035,0.00016107,2]
[350117541,1737637846669,-8484.90138583,0.00016182,2]
[350117542,1737637846679,-1000.0,0.00016212,2]
[350117543,1737637846688,-1690.16888093,0.00016231,2]
[350117544,1737637846698,-8484.90138583,0.0001626,2]
[350117545,1737637846707,-151.0,0.00016278,2]
[350117546,1737637846716,-151.0,0.00016278,2]
[350117547,1737637846725,-151.0,0.00016278,2]
[350117548,1737637846734,-156.4632,0.00016278,2]
[350117549,1737637846744,-1261.918001,0.00016278,2]
[350117550,1737637846753,-1261.918001,0.00016278,2]
[350117551,1737637846763,-705.99757035,0.00016314,2]
[350117552,1737637846772,-3903.0,0.00016325,2]
[350117553,1737637846781,-150.0,0.00016325,2]
[350117554,1737637846790,-1176.0,0.00016325,2]
[350117555,1737637846799,-1106.0,0.00016325,2]
[350117556,1737637846809,-252.91629482,0.00016337,2]
[350117557,1737637846822,-157.051259,0.00016338,2]
[350117558,1737637846832,-167.467659,0.00016338,2]
[350117559,1737637846846,-167.467659,0.00016338,2]
[350117560,1737637846856,-151.0,0.00016338,2]
[350117561,1737637846865,-151.0,0.00016338,2]
[350117562,1737637846875,-151.0,0.00016338,2]
[350117563,1737637846885,-183.8064073,0.00016338,2]
[350117564,1737637846895,-151.0,0.00016338,2]
[350117565,1737637846904,-697.182167,0.00016338,2]
[350117566,1737637846913,-697.182167,0.00016338,2]
[350117567,1737637846923,-155.599283,0.00016338,2]
[350117568,1737637846933,-151.721305,0.00016338,2]
[350117569,1737637846943,-151.0,0.00016338,2]
[350117570,1737637846952,-152.580123,0.00016338,2]
[350117571,1737637846961,-237.582338,0.00016338,2]
[350117572,1737637846970,-155.131727,0.00016338,2]
[350117573,1737637846980,-151.0,0.00016338,2]
[350117574,1737637846989,-153.309865,0.00016338,2]
[350117575,1737637846998,-151.870019,0.00016338,2]
[350117576,1737637847008,-151.0,0.00016338,2]
[350117577,1737637847017,-151.0,0.00016338,2]
[350117578,1737637847026,-151.0,0.00016338,2]
[350117579,1737637847035,-151.0,0.00016338,2]
[350117580,1737637847044,-8484.90138583,0.00016338,2]
[350117581,1737637847053,-151.0,0.00016338,2]
[350117582,1737637847068,-160.442653,0.00016338,2]
[350117583,1737637847078,-151.0,0.00016338,2]
[350117584,1737637847087,-151.663333,0.00016338,2]
[350117585,1737637847096,-151.0,0.00016338,2]
[350117586,1737637847105,-151.0,0.00016338,2]
[350117587,1737637847115,-151.0,0.00016338,2]
[350117588,1737637847124,-159.908397,0.00016338,2]
[350117589,1737637847133,-151.648961,0.00016338,2]
[350117590,1737637847143,-151.0,0.00016338,2]
[350117591,1737637847152,-201.175563,0.00016338,2]
[350117592,1737637847161,-177.785154,0.00016338,2]
[350117593,1737637847170,-151.0,0.00016338,2]
[350117594,1737637847180,-151.0,0.00016338,2]
[350117595,1737637847189,-151.0,0.00016338,2]
[350117596,1737637847198,-154.208319,0.00016338,2]
[350117597,1737637847208,-179.768869,0.00016338,2]
[350117598,1737637847217,-179.768869,0.00016338,2]
[350117599,1737637847226,-179.768869,0.00016338,2]
[350117600,1737637847236,-179.768869,0.00016338,2]
[350117601,1737637847246,-246.034808,0.00016338,2]
[350117602,1737637847255,-246.034808,0.00016338,2]
[350117603,1737637847264,-246.034808,0.00016338,2]
[350117604,1737637847273,-246.034808,0.00016338,2]
[350117605,1737637847281,-17900.5977349,0.00016338,2]
[350117606,1737637990818,500.0,0.00022921,120]
[350117607,1737637993317,2000.0,0.00022921,120]
[350117608,1737637996046,592.268394,0.00022921,120]
[350117609,1737638004766,202.402217,0.00022921,120]
[350117611,1737638591990,209.86272726,0.00022999,120]
[350117616,1737638836726,157.14,0.00016658,30]
[350117625,1737638956253,-216.7564,9e-05,2]
[350117651,1737639031613,-182.28254909,9e-05,2]
[350117652,1737639031623,-1442.15038511,0.0001,2]
[350117653,1737639031633,-164.85,0.00011399,2]
[350117654,1737639031642,-164.14,0.0001158,2]
[350117655,1737639031651,-250.0,0.00011892,2]
[350117656,1737639031661,-300.0,0.00011899,2]
[350117657,1737639031670,-273.74642053,0.000119,2]
[350117658,1737639031679,-6530.89443813,0.000119,2]
[350117659,1737639031688,-323.63773686,0.000119,2]
[350117660,1737639031697,-1715.8658562,0.000119,2]
[350117661,1737639031706,-169.12943615,0.000119,2]
[350117662,1737639031715,-37145.32824772,0.000119,2]
[350117663,1737639031724,-500.0,0.00011973,2]
[350117664,1737639031733,-2141.25960392,0.00011999,2]
[350117665,1737639031742,-608776.02124617,0.00012,2]
[350117666,1737639031751,-759.34583211,0.00012,2]
[350117667,1737639031760,-300.0,0.00012,2]
[350117668,1737639031769,-640.03463225,0.00012229,2]
[350117669,1737639031779,-181.0,0.00012329,2]
[350117670,1737639031788,-294.14119401,0.000125,2]
[350117671,1737639031798,-576.45196716,0.00012521,2]
[350117672,1737639031809,-420.0,0.00013064,2]
[350117673,1737639031819,-1256.43,0.00013135,2]
[350117674,1737639031828,-3584.1508283,0.00014,2]
[350117675,1737639031837,-250.0,0.00014288,2]
[350117676,1737639031846,-587.0,0.00014343,2]
[350117677,1737639031856,-560.61,0.00014377,2]
[350117678,1737639031865,-640.03463225,0.00014741,2]
[350117679,1737639031874,-4373.41,0.00014846,2]
[350117680,1737639031884,-635.39781346,0.000149,2]
[350117681,1737639031893,-635.39781331,0.000149,2]
[350117682,1737639031902,-635.39781331,0.000149,2]
[350117683,1737639031912,-635.39781331,0.000149,2]
[350117684,1737639031921,-635.39781331,0.000149,2]
[350117685,1737639031930,-635.39781331,0.000149,2]
[350117686,1737639031940,-635.39781331,0.000149,2]
[350117687,1737639031949,-635.39781331,0.000149,2]
[350117688,1737639031958,-635.39781331,0.000149,2]
[350117689,1737639031968,-550.0,0.00015,2]
[350117690,1737639031978,-6527.37153671,0.00015,2]
[350117691,1737639031987,-23900.0,0.00015002,2]
[350117692,1737639031996,-635.39781331,0.00015072,2]
[350117693,1737639032006,-297.16043326,0.000151,2]
[350117694,1737639032015,-565.65,0.00015126,2]
[350117695,1737639032025,-2000.0,0.00015149,2]
[350117696,1737639032035,-250.0,0.00015207,2]
[350117697,1737639032044,-1000.0,0.00015233,2]
[350117698,1737639032055,-1260.94,0.00015233,2]
[350117699,1737639032064,-250.0,0.00015259,2]
[350117700,1737639032074,-200.0,0.0001528,2]
[350117702,1737639032083,-635.39781331,0.00015314,2]
[350117704,1737639032092,-156.03,0.00015321,2]
[350117705,1737639032102,-224.66,0.00015382,2]
[350117706,1737639032111,-1256.43,0.00015399,2]
[350117707,1737639032120,-702.82783142,0.000154,2]
[350117708,1737639032130,-485.11927227,0.000154,2]
[350117709,1737639032140,-273.74642053,0.000154,2]
[350117711,1737639032149,-6530.89443812,0.000154,2]
[350117713,1737639032159,-323.63773684,0.000154,2]
[350117715,1737639032168,-166.85,0.00015461,2]
[350117717,1737639032177,-160.02,0.00015463,2]
[350117719,1737639032187,-635.39781331,0.00015555,2]
[350117721,1737639032199,-1000.0,0.00015638,2]
[350117723,1737639032208,-823.0,0.00015747,2]
[350117725,1737639032217,-635.39781331,0.00015797,2]
[350117727,1737639032226,-1570.0,0.00016,3]
[350117729,1737639032235,-558.206337,0.00016011,2]
[350117731,1737639032246,-635.39781331,0.00016038,2]
[350117733,1737639032255,-409.71,0.00016087,2]
[350117734,1737639032264,-437.86,0.00016087,2]
[350117737,1737639032275,-2030.6712,0.000161,2]
[350117738,1737639032285,-565.7832,0.000161,2]
[350117740,1737639032308,-2005.9651,0.000161,2]
[350117742,1737639032318,-10151.181,0.000161,2]
[350117744,1737639032328,-3873.0515,0.000161,2]
[350117746,1737639032337,-430.64066539,0.00016127,2]
[350117748,1737639032346,-51793.6718,0.000162,2]
[350117750,1737639032355,-5000.0,0.000162,2]
[350117752,1737639032365,-860.671502,0.000162,2]
[350117754,1737639032374,-183.80640727,0.000162,2]
[350117756,1737639032383,-500.0,0.00016206,2]
[350117758,1737639032393,-500.0,0.00016207,2]
[350117759,1737639032402,-780.05046145,0.00016225,2]
[350117760,1737639032411,-780.05046145,0.00016229,2]
[350117761,1737639032420,-151.0,0.00016229,2]
[350117762,1737639032429,-1135.726201,0.00016229,2]
[350117763,1737639032438,-151.0,0.00016229,2]
[350117764,1737639032447,-780.05046145,0.00016233,2]
[350117765,1737639032457,-780.05046145,0.00016237,2]
[350117766,1737639032466,-635.39781331,0.00016279,2]
[350117767,1737639032475,-500.0,0.00016299,2]